[Event "Titled Tuesday Blitz July 11 Early 2023"]
[White "Bueno, Alfeu Junior Varela"]
[Black "Bilan, Danila"]
[WhiteFideId "2108879"]
[BlackFideId "24161918"]
[WhiteElo "2382"]
[BlackElo "2519"]
[Result "0-1"]
[Round "6"]
[TimeControl "180+2"]
[Date "2023.07.11"]
[WhiteClock "0:00:03"]
[BlackClock "0:00:05"]
[Board "126"]

1. e4 {[%clk 0:03:00]}  c6 {[%clk 0:02:58]} 2. d4 {[%clk 0:03:00]}  d5 {[%clk 0:02:59]} 3. f3 {[%clk 0:03:01]}  Qa5+ {[%clk 0:02:57]} 4. Nc3 {[%clk 0:02:58]}  dxe4 {[%clk 0:02:46]} 5. fxe4 {[%clk 0:02:57]}  e5 {[%clk 0:02:46]} 6. Nf3 {[%clk 0:02:43]}  Nd7 {[%clk 0:02:35]} 7. Bc4 {[%clk 0:02:31]}  Bb4 {[%clk 0:02:07]} 8. O-O {[%clk 0:01:40]}  Ngf6 {[%clk 0:02:03]} 9. Bg5 {[%clk 0:01:14]}  exd4 {[%clk 0:01:50]} 10. e5 {[%clk 0:00:44]}  dxc3 {[%clk 0:01:12]} 11. exf6 {[%clk 0:00:44]}  O-O {[%clk 0:00:35]} 12. fxg7 {[%clk 0:00:38]}  Re8 {[%clk 0:00:21]} 13. Nd4 {[%clk 0:00:21]}  Qxg5 {[%clk 0:00:11]} 14. Bxf7+ {[%clk 0:00:15]}  Kxg7 {[%clk 0:00:11]} 15. Bxe8 {[%clk 0:00:15]}  Nf6 {[%clk 0:00:07]} 16. Rf3 {[%clk 0:00:10]}  Bg4 {[%clk 0:00:03]} 17. Rg3 {[%clk 0:00:07]}  cxb2 {[%clk 0:00:04]} 18. Ne6+ {[%clk 0:00:05]}  Bxe6 {[%clk 0:00:01]} 19. Rxg5+ {[%clk 0:00:05]}  Kf8 {[%clk 0:00:02]} 20. Rb1 {[%clk 0:00:02]}  Bc5+ {[%clk 0:00:02]} 21. Kh1 {[%clk 0:00:02]}  Rxe8 {[%clk 0:00:03]} 22. Qd2 {[%clk 0:00:02]}  Ke7 {[%clk 0:00:03]} 23. Qf4 {[%clk 0:00:02]}  Rg8 {[%clk 0:00:02]} 24. Rxg8 {[%clk 0:00:02]}  Bxg8 {[%clk 0:00:03]} 25. Qg5 {[%clk 0:00:03]}  Bd5 {[%clk 0:00:03]} 26. Rxb2 {[%clk 0:00:02]}  Kf7 {[%clk 0:00:03]} 27. Qh4 {[%clk 0:00:02]}  Ne4 {[%clk 0:00:04]} 28. Qf4+ {[%clk 0:00:02]}  Ke6 {[%clk 0:00:04]} 29. Qc7 {[%clk 0:00:02]}  Nf2+ {[%clk 0:00:04]} 30. Kg1 {[%clk 0:00:02]}  Nd3+ {[%clk 0:00:05]} 31. Kf1 {[%clk 0:00:02]}  Nxb2 {[%clk 0:00:05]} 32. Qxb7 {[%clk 0:00:03]}  Bc4+ {[%clk 0:00:06]} 33. Ke1 {[%clk 0:00:02]}  Bb5 {[%clk 0:00:05]} 34. Qc8+ {[%clk 0:00:03]}  Kd5 {[%clk 0:00:06]} 35. Qh8 {[%clk 0:00:04]}  Bb4+ {[%clk 0:00:04]} 36. Kf2 {[%clk 0:00:03]}  Nc4 {[%clk 0:00:04]} 37. Qxh7 {[%clk 0:00:03]}  Bc5+ {[%clk 0:00:04]} 38. Ke1 {[%clk 0:00:03]}  Ne5 {[%clk 0:00:04]} 39. Qb7 {[%clk 0:00:02]}  Bb4+ {[%clk 0:00:05]} 40. Kd1 {[%clk 0:00:02]}  Bc3 {[%clk 0:00:05]} 41. Qc8 {[%clk 0:00:01]}  Nc4 {[%clk 0:00:05]} 42. Qa8 {[%clk 0:00:01]}  Ne3+ {[%clk 0:00:05]} 43. Kc1 {[%clk 0:00:01]}  a6 {[%clk 0:00:05]} 44. Qa7 {[%clk 0:00:01]}  Nc4 {[%clk 0:00:05]} 45. Qb8 {[%clk 0:00:01]}  Bb2+ {[%clk 0:00:06]} 46. Kb1 {[%clk 0:00:01]}  Be5 {[%clk 0:00:06]} 47. Qg8+ {[%clk 0:00:02]}  Kc5 {[%clk 0:00:05]} 48. Qg4 {[%clk 0:00:03]}  Nd2+ {[%clk 0:00:05]} 49. Kc1 {[%clk 0:00:03]}  Nc4 {[%clk 0:00:05]} 50. a4 {[%clk 0:00:03]}  Bxa4 {[%clk 0:00:05]} 51. Qc8 {[%clk 0:00:04]}  Bb5 {[%clk 0:00:05]} 52. Qb8 {[%clk 0:00:03]}  Bxb8 {[%clk 0:00:05]} 0-1


[Site "https://www.chess.com"]

[Event "Titled Tuesday Blitz July 11 Early 2023"]
[White "Reprintsev, Alexander"]
[Black "GAO"]
[WhiteFideId "14100541"]
[WhiteElo "2503"]
[BlackElo "2380"]
[Result "1-0"]
[Round "6"]
[TimeControl "180+2"]
[Date "2023.07.11"]
[WhiteClock "0:00:04"]
[BlackClock "0:00:00"]
[Board "128"]

1. e4 {[%clk 0:02:59]}  c5 {[%clk 0:02:59]} 2. b3 {[%clk 0:02:56]}  e5 {[%clk 0:02:57]} 3. Bb2 {[%clk 0:02:55]}  Nc6 {[%clk 0:02:57]} 4. f4 {[%clk 0:02:55]}  d6 {[%clk 0:02:57]} 5. Bb5 {[%clk 0:02:44]}  Bd7 {[%clk 0:02:42]} 6. Qf3 {[%clk 0:01:35]}  Nf6 {[%clk 0:02:32]} 7. Ne2 {[%clk 0:01:33]}  Be7 {[%clk 0:02:12]} 8. d3 {[%clk 0:01:21]}  Qa5+ {[%clk 0:02:05]} 9. Nec3 {[%clk 0:01:11]}  Nd4 {[%clk 0:01:52]} 10. Bxd7+ {[%clk 0:01:10]}  Nxd7 {[%clk 0:01:52]} 11. Qf2 {[%clk 0:01:10]}  O-O {[%clk 0:01:23]} 12. O-O {[%clk 0:01:10]}  Nf6 {[%clk 0:01:12]} 13. h3 {[%clk 0:01:03]}  b5 {[%clk 0:01:08]} 14. a4 {[%clk 0:00:58]}  b4 {[%clk 0:01:06]} 15. Nd1 {[%clk 0:00:58]}  exf4 {[%clk 0:01:05]} 16. Bxd4 {[%clk 0:00:49]}  cxd4 {[%clk 0:01:05]} 17. Nb2 {[%clk 0:00:46]}  Qc5 {[%clk 0:00:43]} 18. Nc4 {[%clk 0:00:45]}  d5 {[%clk 0:00:42]} 19. exd5 {[%clk 0:00:45]}  Nxd5 {[%clk 0:00:43]} 20. Nbd2 {[%clk 0:00:38]}  Ne3 {[%clk 0:00:23]} 21. Ne4 {[%clk 0:00:28]}  Qc7 {[%clk 0:00:23]} 22. Qxf4 {[%clk 0:00:25]}  Qxf4 {[%clk 0:00:21]} 23. Rxf4 {[%clk 0:00:25]}  Nxc2 {[%clk 0:00:21]} 24. Rc1 {[%clk 0:00:22]}  Ne3 {[%clk 0:00:22]} 25. Ng3 {[%clk 0:00:16]}  Nd5 {[%clk 0:00:22]} 26. Rxd4 {[%clk 0:00:16]}  Nc3 {[%clk 0:00:21]} 27. Rd7 {[%clk 0:00:14]}  Bf6 {[%clk 0:00:19]} 28. Kh2 {[%clk 0:00:12]}  Rfd8 {[%clk 0:00:18]} 29. Rxd8+ {[%clk 0:00:12]}  Rxd8 {[%clk 0:00:19]} 30. Na5 {[%clk 0:00:09]}  Be5 {[%clk 0:00:18]} 31. Nc6 {[%clk 0:00:08]}  Rd5 {[%clk 0:00:16]} 32. Nxe5 {[%clk 0:00:06]}  Rxe5 {[%clk 0:00:17]} 33. Ne4 {[%clk 0:00:06]}  g6 {[%clk 0:00:05]} 34. Nxc3 {[%clk 0:00:05]}  bxc3 {[%clk 0:00:06]} 35. Rxc3 {[%clk 0:00:05]}  Re2 {[%clk 0:00:06]} 36. Rc4 {[%clk 0:00:05]}  Rd2 {[%clk 0:00:06]} 37. d4 {[%clk 0:00:05]}  a5 {[%clk 0:00:05]} 38. Rc5 {[%clk 0:00:04]}  Rb2 {[%clk 0:00:05]} 39. Rb5 {[%clk 0:00:04]}  Kg7 {[%clk 0:00:04]} 40. d5 {[%clk 0:00:05]}  Kf6 {[%clk 0:00:04]} 41. Kg3 {[%clk 0:00:05]}  Ke5 {[%clk 0:00:04]} 42. Kf3 {[%clk 0:00:06]}  Kd6 {[%clk 0:00:03]} 43. g4 {[%clk 0:00:07]}  Ke5 {[%clk 0:00:03]} 44. h4 {[%clk 0:00:07]}  Rh2 {[%clk 0:00:03]} 45. Kg3 {[%clk 0:00:07]}  Rb2 {[%clk 0:00:03]} 46. g5 {[%clk 0:00:08]}  Kd6 {[%clk 0:00:03]} 47. Kf3 {[%clk 0:00:08]}  Ke5 {[%clk 0:00:02]} 48. Kg4 {[%clk 0:00:08]}  Rg2+ {[%clk 0:00:02]} 49. Kh3 {[%clk 0:00:08]}  Rb2 {[%clk 0:00:03]} 50. Kg3 {[%clk 0:00:08]}  Kd6 {[%clk 0:00:02]} 51. Kf4 {[%clk 0:00:09]}  Rf2+ {[%clk 0:00:02]} 52. Ke3 {[%clk 0:00:09]}  Rb2 {[%clk 0:00:02]} 53. Kd4 {[%clk 0:00:09]}  Rh2 {[%clk 0:00:03]} 54. Rb6+ {[%clk 0:00:09]}  Kc7 {[%clk 0:00:03]} 55. Rc6+ {[%clk 0:00:07]}  Kd7 {[%clk 0:00:03]} 56. Rf6 {[%clk 0:00:08]}  Rxh4+ {[%clk 0:00:04]} 57. Kc5 {[%clk 0:00:07]}  Rh3 {[%clk 0:00:02]} 58. Rxf7+ {[%clk 0:00:07]}  Kd8 {[%clk 0:00:03]} 59. Rb7 {[%clk 0:00:08]}  Rc3+ {[%clk 0:00:03]} 60. Kd6 {[%clk 0:00:08]}  Ke8 {[%clk 0:00:03]} 61. Rxh7 {[%clk 0:00:08]}  Rxb3 {[%clk 0:00:02]} 62. Re7+ {[%clk 0:00:07]}  Kd8 {[%clk 0:00:02]} 63. Rg7 {[%clk 0:00:07]}  Rb6+ {[%clk 0:00:03]} 64. Kc5 {[%clk 0:00:06]}  Rb4 {[%clk 0:00:02]} 65. Kd6 {[%clk 0:00:04]}  Rb6+ {[%clk 0:00:03]} 66. Ke5 {[%clk 0:00:04]}  Rb4 {[%clk 0:00:04]} 67. Ke6 {[%clk 0:00:04]}  Re4+ {[%clk 0:00:03]} 68. Kf6 {[%clk 0:00:04]}  Rxa4 {[%clk 0:00:03]} 69. Kxg6 {[%clk 0:00:05]}  Rd4 {[%clk 0:00:04]} 70. Ra7 {[%clk 0:00:03]}  Rxd5 {[%clk 0:00:04]} 71. Kf6 {[%clk 0:00:04]}  Ke8 {[%clk 0:00:04]} 72. g6 {[%clk 0:00:04]}  Rd6+ {[%clk 0:00:04]} 73. Kg7 {[%clk 0:00:04]}  a4 {[%clk 0:00:03]} 74. Rxa4 {[%clk 0:00:03]}  Rd7+ {[%clk 0:00:04]} 75. Kg8 {[%clk 0:00:02]}  Ke7 {[%clk 0:00:02]} 76. g7 {[%clk 0:00:03]}  Kf6 {[%clk 0:00:01]} 77. Rf4+ {[%clk 0:00:03]}  Kg6 {[%clk 0:00:01]} 78. Rg4+ {[%clk 0:00:03]}  Kh6 {[%clk 0:00:02]} 79. Rh4+ {[%clk 0:00:03]}  Kg6 {[%clk 0:00:02]} 80. Rg4+ {[%clk 0:00:03]}  Kf6 {[%clk 0:00:02]} 81. Rg1 {[%clk 0:00:03]}  Rd8+ {[%clk 0:00:02]} 82. Kh7 {[%clk 0:00:04]}  Rd7 {[%clk 0:00:03]} 83. Rf1+ {[%clk 0:00:04]}  Kg5 {[%clk 0:00:02]} 84. Kh8 {[%clk 0:00:04]}  Kg6 {[%clk 0:00:00]} 85. g8=Q+ {[%clk 0:00:04]} 1-0


[Site "https://www.chess.com"]

[Event "Titled Tuesday Blitz July 11 Early 2023"]
[White "Womacka, Mathias"]
[Black "TomLiu777"]
[WhiteFideId "4611390"]
[WhiteElo "2487"]
[BlackElo "2360"]
[Result "1-0"]
[Round "6"]
[TimeControl "180+2"]
[Date "2023.07.11"]
[WhiteClock "0:00:16"]
[BlackClock "0:00:05"]
[Board "135"]

1. e4 {[%clk 0:03:00]}  e6 {[%clk 0:02:59]} 2. d4 {[%clk 0:02:59]}  d5 {[%clk 0:03:00]} 3. Nd2 {[%clk 0:02:59]}  Be7 {[%clk 0:02:59]} 4. Ngf3 {[%clk 0:02:56]}  Nf6 {[%clk 0:03:00]} 5. e5 {[%clk 0:02:56]}  Nfd7 {[%clk 0:03:01]} 6. Bd3 {[%clk 0:02:56]}  c5 {[%clk 0:03:01]} 7. c3 {[%clk 0:02:54]}  Nc6 {[%clk 0:03:00]} 8. O-O {[%clk 0:02:54]}  a5 {[%clk 0:03:00]} 9. a4 {[%clk 0:02:42]}  b6 {[%clk 0:02:59]} 10. Re1 {[%clk 0:02:33]}  Ba6 {[%clk 0:02:59]} 11. Bxa6 {[%clk 0:02:33]}  Rxa6 {[%clk 0:02:59]} 12. Nf1 {[%clk 0:02:31]}  g5 {[%clk 0:02:48]} 13. Be3 {[%clk 0:02:27]}  g4 {[%clk 0:02:44]} 14. N3d2 {[%clk 0:02:27]}  h5 {[%clk 0:02:44]} 15. f3 {[%clk 0:02:20]}  Rg8 {[%clk 0:02:34]} 16. fxg4 {[%clk 0:02:07]}  hxg4 {[%clk 0:02:35]} 17. Ng3 {[%clk 0:02:01]}  Bh4 {[%clk 0:02:25]} 18. Ndf1 {[%clk 0:01:58]}  Qe7 {[%clk 0:02:21]} 19. Bf2 {[%clk 0:01:50]}  Kd8 {[%clk 0:02:20]} 20. Qe2 {[%clk 0:01:46]}  Ra8 {[%clk 0:02:18]} 21. Nh5 {[%clk 0:01:38]}  Kc7 {[%clk 0:02:11]} 22. dxc5 {[%clk 0:01:18]}  Bxf2+ {[%clk 0:01:56]} 23. Qxf2 {[%clk 0:01:17]}  Qxc5 {[%clk 0:01:56]} 24. Ne3 {[%clk 0:01:09]}  Ncxe5 {[%clk 0:01:45]} 25. Kh1 {[%clk 0:01:04]}  g3 {[%clk 0:01:44]} 26. Nxg3 {[%clk 0:01:03]}  Nd3 {[%clk 0:01:38]} 27. Qxf7 {[%clk 0:01:00]}  Nxe1 {[%clk 0:01:23]} 28. Rxe1 {[%clk 0:01:01]}  Rae8 {[%clk 0:01:05]} 29. Nc2 {[%clk 0:00:51]}  Ref8 {[%clk 0:00:58]} 30. Qxe6 {[%clk 0:00:50]}  Rxg3 {[%clk 0:00:56]} 31. Nd4 {[%clk 0:00:43]}  Rf6 {[%clk 0:00:25]} 32. Qxf6 {[%clk 0:00:35]}  Nxf6 {[%clk 0:00:20]} 33. Ne6+ {[%clk 0:00:35]}  Kd6 {[%clk 0:00:18]} 34. Nxc5 {[%clk 0:00:36]}  Rg8 {[%clk 0:00:14]} 35. Re6+ {[%clk 0:00:34]}  Kxc5 {[%clk 0:00:13]} 36. Rxf6 {[%clk 0:00:35]}  Re8 {[%clk 0:00:13]} 37. h4 {[%clk 0:00:34]}  Re1+ {[%clk 0:00:12]} 38. Kh2 {[%clk 0:00:33]}  Re4 {[%clk 0:00:12]} 39. Kh3 {[%clk 0:00:33]}  Rxa4 {[%clk 0:00:11]} 40. h5 {[%clk 0:00:33]}  Ra1 {[%clk 0:00:09]} 41. h6 {[%clk 0:00:28]}  Rh1+ {[%clk 0:00:07]} 42. Kg4 {[%clk 0:00:27]}  b5 {[%clk 0:00:07]} 43. Kg5 {[%clk 0:00:28]}  Rh2 {[%clk 0:00:07]} 44. g4 {[%clk 0:00:26]}  a4 {[%clk 0:00:06]} 45. Kg6 {[%clk 0:00:20]}  Rxb2 {[%clk 0:00:05]} 46. h7 {[%clk 0:00:20]}  Rh2 {[%clk 0:00:06]} 47. Kg7 {[%clk 0:00:19]}  Rxh7+ {[%clk 0:00:03]} 48. Kxh7 {[%clk 0:00:20]}  Kc4 {[%clk 0:00:02]} 49. Rc6+ {[%clk 0:00:19]}  Kb3 {[%clk 0:00:03]} 50. g5 {[%clk 0:00:20]}  a3 {[%clk 0:00:03]} 51. g6 {[%clk 0:00:20]}  a2 {[%clk 0:00:03]} 52. Ra6 {[%clk 0:00:20]}  Kxc3 {[%clk 0:00:03]} 53. Rxa2 {[%clk 0:00:18]}  b4 {[%clk 0:00:03]} 54. g7 {[%clk 0:00:17]}  b3 {[%clk 0:00:04]} 55. Ra5 {[%clk 0:00:17]}  b2 {[%clk 0:00:04]} 56. Rb5 {[%clk 0:00:17]}  d4 {[%clk 0:00:04]} 57. g8=Q {[%clk 0:00:16]}  Kc2 {[%clk 0:00:05]} 58. Qg2+ {[%clk 0:00:15]}  Kc1 {[%clk 0:00:05]} 59. Qxb2+ {[%clk 0:00:16]}  Kd1 {[%clk 0:00:05]} 60. Qxd4+ {[%clk 0:00:16]}  Ke1 {[%clk 0:00:05]} 61. Qe3+ {[%clk 0:00:15]}  Kd1 {[%clk 0:00:06]} 62. Rb1+ {[%clk 0:00:15]}  Kc2 {[%clk 0:00:05]} 63. Rc1+ {[%clk 0:00:15]}  Kb2 {[%clk 0:00:06]} 64. Qc3+ {[%clk 0:00:16]}  Ka2 {[%clk 0:00:05]} 65. Ra1# {[%clk 0:00:16]} 1-0


[Site "https://www.chess.com"]

[Event "Titled Tuesday Blitz July 11 Early 2023"]
[White "Camacho Collados, Marcos"]
[Black "Bogaudinov, Rushan"]
[WhiteFideId "2266237"]
[BlackFideId "4129288"]
[WhiteElo "2485"]
[BlackElo "2340"]
[Result "1-0"]
[Round "6"]
[TimeControl "180+2"]
[Date "2023.07.11"]
[WhiteClock "0:02:07"]
[BlackClock "0:01:43"]
[Board "137"]

1. Nf3 {[%clk 0:02:23]}  d5 {[%clk 0:02:21]} 2. g3 {[%clk 0:02:24]}  e6 {[%clk 0:02:20]} 3. Bg2 {[%clk 0:02:25]}  Nf6 {[%clk 0:02:20]} 4. O-O {[%clk 0:02:25]}  Be7 {[%clk 0:02:21]} 5. d3 {[%clk 0:02:20]}  O-O {[%clk 0:02:22]} 6. Nbd2 {[%clk 0:02:21]}  b6 {[%clk 0:02:22]} 7. e4 {[%clk 0:02:21]}  Bb7 {[%clk 0:02:22]} 8. e5 {[%clk 0:02:21]}  Nfd7 {[%clk 0:02:22]} 9. Re1 {[%clk 0:02:21]}  c5 {[%clk 0:02:22]} 10. Nf1 {[%clk 0:02:22]}  Nc6 {[%clk 0:02:22]} 11. h4 {[%clk 0:02:23]}  Qc7 {[%clk 0:02:20]} 12. Bf4 {[%clk 0:02:23]}  b5 {[%clk 0:02:18]} 13. h5 {[%clk 0:02:24]}  b4 {[%clk 0:02:16]} 14. h6 {[%clk 0:02:24]}  g6 {[%clk 0:02:17]} 15. N1h2 {[%clk 0:02:24]}  a5 {[%clk 0:02:13]} 16. Ng4 {[%clk 0:02:25]}  a4 {[%clk 0:02:13]} 17. a3 {[%clk 0:02:26]}  bxa3 {[%clk 0:02:11]} 18. bxa3 {[%clk 0:02:27]}  Ba6 {[%clk 0:02:10]} 19. Qd2 {[%clk 0:02:26]}  Qa5 {[%clk 0:02:08]} 20. Qc1 {[%clk 0:02:25]}  Rab8 {[%clk 0:02:06]} 21. Bg5 {[%clk 0:02:25]}  Rb7 {[%clk 0:01:54]} 22. Bxe7 {[%clk 0:02:23]}  Nxe7 {[%clk 0:01:55]} 23. Qg5 {[%clk 0:02:23]}  Qd8 {[%clk 0:01:49]} 24. Nf6+ {[%clk 0:02:09]}  Kh8 {[%clk 0:01:49]} 25. Nxd7 {[%clk 0:02:07]}  Rxd7 {[%clk 0:01:43]} 26. Qf6+ {[%clk 0:02:07]} 1-0


[Site "https://www.chess.com"]

[Event "Titled Tuesday Blitz July 11 Early 2023"]
[White "Lopez Del Alamo, Antonio"]
[Black "Namitbir Singh Walia"]
[WhiteFideId "2227339"]
[BlackFideId "35071068"]
[WhiteElo "2326"]
[BlackElo "2485"]
[Result "1-0"]
[Round "6"]
[TimeControl "180+2"]
[Date "2023.07.11"]
[WhiteClock "0:00:30"]
[BlackClock "0:00:00"]
[Board "138"]

1. e4 {[%clk 0:02:59]}  c5 {[%clk 0:02:52]} 2. Nf3 {[%clk 0:02:58]}  Nc6 {[%clk 0:02:48]} 3. b4 {[%clk 0:02:57]}  cxb4 {[%clk 0:02:46]} 4. d4 {[%clk 0:02:57]}  d5 {[%clk 0:02:41]} 5. exd5 {[%clk 0:02:57]}  Qxd5 {[%clk 0:02:41]} 6. c4 {[%clk 0:02:56]}  bxc3 {[%clk 0:02:27]} 7. Nxc3 {[%clk 0:02:55]}  Qa5 {[%clk 0:02:25]} 8. d5 {[%clk 0:02:53]}  Qxc3+ {[%clk 0:02:09]} 9. Bd2 {[%clk 0:02:48]}  Qa3 {[%clk 0:01:27]} 10. Rb1 {[%clk 0:02:36]}  e6 {[%clk 0:00:54]} 11. dxc6 {[%clk 0:02:31]}  bxc6 {[%clk 0:00:55]} 12. Qc2 {[%clk 0:02:26]}  Bd7 {[%clk 0:00:50]} 13. Ne5 {[%clk 0:02:18]}  Qc5 {[%clk 0:00:44]} 14. Qxc5 {[%clk 0:02:16]}  Bxc5 {[%clk 0:00:45]} 15. Nxd7 {[%clk 0:02:16]}  Kxd7 {[%clk 0:00:45]} 16. Rb7+ {[%clk 0:02:16]}  Ke8 {[%clk 0:00:38]} 17. Bc4 {[%clk 0:01:50]}  Ne7 {[%clk 0:00:38]} 18. O-O {[%clk 0:01:50]}  Nf5 {[%clk 0:00:19]} 19. Rfb1 {[%clk 0:01:46]}  Bb6 {[%clk 0:00:17]} 20. Bf4 {[%clk 0:01:25]}  h6 {[%clk 0:00:16]} 21. a4 {[%clk 0:01:22]}  Rd8 {[%clk 0:00:14]} 22. a5 {[%clk 0:01:15]}  Bc5 {[%clk 0:00:14]} 23. g4 {[%clk 0:00:52]}  Nd4 {[%clk 0:00:09]} 24. Rb8 {[%clk 0:00:48]}  Rf8 {[%clk 0:00:06]} 25. Bc7 {[%clk 0:00:42]}  Rxb8 {[%clk 0:00:05]} 26. Rxb8+ {[%clk 0:00:41]}  Ke7 {[%clk 0:00:06]} 27. Rb7 {[%clk 0:00:41]}  Kf6 {[%clk 0:00:06]} 28. Kg2 {[%clk 0:00:35]}  Rc8 {[%clk 0:00:07]} 29. f4 {[%clk 0:00:35]}  Kg6 {[%clk 0:00:06]} 30. Bd3+ {[%clk 0:00:30]}  f5 {[%clk 0:00:00]} 31. Be5 {[%clk 0:00:30]} 1-0


[Site "https://www.chess.com"]

[Event "Titled Tuesday Blitz July 11 Early 2023"]
[White "Romero Arzuaga, Yudel"]
[Black "Kleiman, Jake"]
[WhiteFideId "3521010"]
[BlackFideId "2020041"]
[WhiteElo "2317"]
[BlackElo "2483"]
[Result "0-1"]
[Round "6"]
[TimeControl "180+2"]
[Date "2023.07.11"]
[WhiteClock "0:01:52"]
[BlackClock "0:01:47"]
[Board "139"]

1. d4 {[%clk 0:03:00]}  Nf6 {[%clk 0:02:43]} 2. Nf3 {[%clk 0:03:00]}  e6 {[%clk 0:02:43]} 3. Bg5 {[%clk 0:02:59]}  h6 {[%clk 0:02:42]} 4. e3 {[%clk 0:03:00]}  hxg5 {[%clk 0:02:42]} 5. Nxg5 {[%clk 0:02:55]}  d5 {[%clk 0:02:40]} 6. Nd2 {[%clk 0:02:54]}  c5 {[%clk 0:02:41]} 7. c3 {[%clk 0:02:54]}  Nc6 {[%clk 0:02:41]} 8. f4 {[%clk 0:02:53]}  Bd6 {[%clk 0:02:31]} 9. Bd3 {[%clk 0:02:50]}  Qe7 {[%clk 0:02:28]} 10. g3 {[%clk 0:02:50]}  Nd7 {[%clk 0:02:23]} 11. Qe2 {[%clk 0:02:47]}  Nb6 {[%clk 0:02:20]} 12. O-O-O {[%clk 0:02:44]}  Bd7 {[%clk 0:02:19]} 13. Ngf3 {[%clk 0:02:38]}  O-O-O {[%clk 0:02:18]} 14. Ne5 {[%clk 0:02:38]}  Be8 {[%clk 0:02:13]} 15. h4 {[%clk 0:02:33]}  f6 {[%clk 0:02:13]} 16. Nxc6 {[%clk 0:02:30]}  Bxc6 {[%clk 0:02:11]} 17. Bc2 {[%clk 0:02:28]}  Kb8 {[%clk 0:02:11]} 18. Rde1 {[%clk 0:02:27]}  e5 {[%clk 0:02:11]} 19. Qg4 {[%clk 0:02:21]}  cxd4 {[%clk 0:02:09]} 20. exd4 {[%clk 0:02:18]}  e4 {[%clk 0:02:09]} 21. Nf1 {[%clk 0:02:17]}  Nc4 {[%clk 0:02:05]} 22. Bb3 {[%clk 0:02:13]}  Bb5 {[%clk 0:02:03]} 23. Bxc4 {[%clk 0:02:09]}  Bxc4 {[%clk 0:02:03]} 24. Ne3 {[%clk 0:02:07]}  Bxa2 {[%clk 0:02:03]} 25. Kc2 {[%clk 0:02:06]}  Qd7 {[%clk 0:01:51]} 26. b3 {[%clk 0:02:02]}  Qb5 {[%clk 0:01:47]} 27. Rb1 {[%clk 0:01:53]}  Bxb1+ {[%clk 0:01:46]} 28. Rxb1 {[%clk 0:01:54]}  Qd3+ {[%clk 0:01:46]} 29. Kb2 {[%clk 0:01:52]}  Qxe3 {[%clk 0:01:47]} 0-1


[Site "https://www.chess.com"]

[Event "Titled Tuesday Blitz July 11 Early 2023"]
[White "Baches Garcia, Guillermo"]
[Black "Vifleemskaia, Svetlana"]
[WhiteFideId "2209764"]
[BlackFideId "4129490"]
[WhiteElo "2477"]
[BlackElo "2316"]
[Result "1-0"]
[Round "6"]
[TimeControl "180+2"]
[Date "2023.07.11"]
[WhiteClock "0:00:10"]
[BlackClock "0:00:00"]
[Board "140"]

1. e4 {[%clk 0:03:00]}  e5 {[%clk 0:02:59]} 2. Nf3 {[%clk 0:03:01]}  Nc6 {[%clk 0:02:59]} 3. Nc3 {[%clk 0:03:01]}  Nf6 {[%clk 0:02:58]} 4. d4 {[%clk 0:03:02]}  exd4 {[%clk 0:02:58]} 5. Nxd4 {[%clk 0:03:02]}  Bb4 {[%clk 0:02:58]} 6. Nxc6 {[%clk 0:03:03]}  bxc6 {[%clk 0:02:58]} 7. Bd3 {[%clk 0:03:04]}  d5 {[%clk 0:02:58]} 8. Bd2 {[%clk 0:03:04]}  Qe7 {[%clk 0:02:54]} 9. O-O {[%clk 0:02:55]}  d4 {[%clk 0:02:36]} 10. Ne2 {[%clk 0:02:51]}  Bxd2 {[%clk 0:02:36]} 11. Qxd2 {[%clk 0:02:49]}  c5 {[%clk 0:02:36]} 12. Ng3 {[%clk 0:02:42]}  O-O {[%clk 0:02:30]} 13. Rae1 {[%clk 0:02:38]}  Be6 {[%clk 0:02:17]} 14. b3 {[%clk 0:02:35]}  a5 {[%clk 0:02:11]} 15. h3 {[%clk 0:02:29]}  a4 {[%clk 0:02:11]} 16. f4 {[%clk 0:02:28]}  axb3 {[%clk 0:02:10]} 17. axb3 {[%clk 0:02:27]}  c4 {[%clk 0:02:07]} 18. bxc4 {[%clk 0:02:24]}  Qc5 {[%clk 0:02:05]} 19. e5 {[%clk 0:02:12]}  Nd7 {[%clk 0:02:02]} 20. Ne4 {[%clk 0:01:48]}  Qc6 {[%clk 0:01:56]} 21. f5 {[%clk 0:01:40]}  Bxc4 {[%clk 0:01:55]} 22. Bxc4 {[%clk 0:01:35]}  Qxc4 {[%clk 0:01:53]} 23. f6 {[%clk 0:01:30]}  Nxe5 {[%clk 0:01:25]} 24. fxg7 {[%clk 0:01:26]}  Kxg7 {[%clk 0:01:24]} 25. h4 {[%clk 0:00:55]}  h6 {[%clk 0:01:03]} 26. Rf6 {[%clk 0:00:47]}  d3 {[%clk 0:00:54]} 27. Qxh6+ {[%clk 0:00:36]}  Kg8 {[%clk 0:00:53]} 28. Ng5 {[%clk 0:00:20]}  Rfe8 {[%clk 0:00:14]} 29. Qh7+ {[%clk 0:00:20]}  Kf8 {[%clk 0:00:15]} 30. Qh8+ {[%clk 0:00:20]}  Ke7 {[%clk 0:00:15]} 31. Rxe5+ {[%clk 0:00:20]}  Kd7 {[%clk 0:00:13]} 32. Rxe8 {[%clk 0:00:11]}  Rxe8 {[%clk 0:00:12]} 33. Qh7 {[%clk 0:00:11]}  Re7 {[%clk 0:00:09]} 34. Rxf7 {[%clk 0:00:10]}  Qc5+ {[%clk 0:00:06]} 35. Kh2 {[%clk 0:00:09]}  dxc2 {[%clk 0:00:06]} 36. Rxe7+ {[%clk 0:00:09]}  Qxe7 {[%clk 0:00:06]} 37. Qxc2 {[%clk 0:00:10]}  Qe5+ {[%clk 0:00:05]} 38. g3 {[%clk 0:00:10]}  c5 {[%clk 0:00:02]} 39. Ne4 {[%clk 0:00:10]}  Kc6 {[%clk 0:00:00]} 40. Nxc5 {[%clk 0:00:10]} 1-0


[Site "https://www.chess.com"]

[Event "Titled Tuesday Blitz July 11 Early 2023"]
[White "Szczurek, Krzysztof"]
[Black "Garrido, Denis"]
[WhiteFideId "1185489"]
[BlackFideId "601217"]
[WhiteElo "2476"]
[BlackElo "2308"]
[Result "1-0"]
[Round "6"]
[TimeControl "180+2"]
[Date "2023.07.11"]
[WhiteClock "0:02:08"]
[BlackClock "0:02:16"]
[Board "141"]

1. e4 {[%clk 0:03:00]}  e5 {[%clk 0:02:58]} 2. Nf3 {[%clk 0:03:01]}  Nc6 {[%clk 0:02:58]} 3. Bc4 {[%clk 0:03:01]}  Nf6 {[%clk 0:02:58]} 4. d3 {[%clk 0:03:01]}  Bc5 {[%clk 0:02:57]} 5. c3 {[%clk 0:03:01]}  a5 {[%clk 0:02:57]} 6. Bb3 {[%clk 0:03:02]}  d6 {[%clk 0:02:57]} 7. Nbd2 {[%clk 0:03:01]}  O-O {[%clk 0:02:56]} 8. h3 {[%clk 0:03:00]}  Be6 {[%clk 0:02:50]} 9. Nf1 {[%clk 0:02:57]}  Ba7 {[%clk 0:02:42]} 10. Ng3 {[%clk 0:02:56]}  a4 {[%clk 0:02:36]} 11. Bxa4 {[%clk 0:02:37]}  Ne7 {[%clk 0:02:36]} 12. O-O {[%clk 0:02:35]}  Ng6 {[%clk 0:02:34]} 13. Bc2 {[%clk 0:02:31]}  h6 {[%clk 0:02:30]} 14. Be3 {[%clk 0:02:30]}  Nh7 {[%clk 0:02:28]} 15. Qd2 {[%clk 0:02:28]}  Qf6 {[%clk 0:02:23]} 16. Nh5 {[%clk 0:02:17]}  Qe7 {[%clk 0:02:16]} 17. Bxh6 {[%clk 0:02:08]} 1-0


[Site "https://www.chess.com"]